bitfinex-derivatives/quotes_BTCF0:USTF0_20260106
["timestamp","ask_amount","ask_price","bid_price","bid_amount"]
[1767675588837,0.11048877,93845.0,93827.0,0.14773775]
[1767675589332,0.09983177,93845.0,93827.0,0.14773775]
[1767675589535,0.1110832,93845.0,93827.0,0.14773775]
[1767675590029,0.09983177,93845.0,93828.0,0.010659]
[1767675590632,0.09983177,93845.0,93827.0,0.14773775]
[1767675591135,0.11048877,93845.0,93827.0,0.14773775]
[1767675591337,0.1217402,93845.0,93827.0,0.14773775]
[1767675592635,0.11048877,93843.0,93827.0,0.14773775]
[1767675592937,0.09983177,93843.0,93827.0,0.14773775]
[1767675594231,0.09983177,93843.0,93827.0,0.15839675]
[1767675594741,0.09983177,93843.0,93827.0,0.13039675]
[1767675595545,0.09983177,93843.0,93827.0,0.11973775]
[1767675599945,0.01033556,93840.0,93827.0,0.11973775]
[1767675600140,0.09880476,93839.0,93826.0,1e-08]
[1767675600339,0.09880476,93839.0,93826.0,0.05961567]
[1767675600537,0.09880476,93835.0,93826.0,1e-08]
[1767675600736,0.09880476,93827.0,93809.0,0.002132]
[1767675600941,0.09880476,93827.0,93809.0,0.00264453]
[1767675601437,0.10136998,93826.0,93809.0,0.0600841]
[1767675601941,0.11187942,93824.0,93809.0,0.002132]
[1767675602136,0.09071098,93822.0,93806.0,0.15018147]
[1767675602533,0.09071098,93822.0,93806.0,0.13018147]
[1767675603341,7.997e-05,93825.0,93807.0,0.0026576]
[1767675603542,7.997e-05,93825.0,93807.0,0.0133186]
[1767675603737,7.997e-05,93825.0,93809.0,0.01411052]
[1767675603937,7.997e-05,93825.0,93810.0,0.00344952]
[1767675604134,0.09071098,93833.0,93813.0,0.00344952]
[1767675604338,0.0906,93832.0,93814.0,0.00344952]
[1767675604541,0.09071098,93833.0,93816.0,0.00344952]
[1767675604736,0.09071098,93838.0,93818.0,0.05221618]
[1767675604946,0.0906,93840.0,93821.0,0.00330279]
[1767675605144,0.09071098,93843.0,93826.0,0.00330279]
[1767675605145,0.08863198,93843.0,93826.0,0.00330279]
[1767675605645,0.01050944,93852.0,93827.0,0.00325204]
[1767675605831,0.01050944,93852.0,93820.0,0.09817697]
[1767675605832,0.0906,93851.0,93830.0,0.00325204]
[1767675606035,0.10110944,93852.0,93832.0,0.00325204]
[1767675606543,0.0906,93852.0,93832.0,0.00325204]
[1767675607245,0.09071098,93851.0,93832.0,0.00325204]
[1767675608445,0.10122042,93851.0,93832.0,0.00325204]
[1767675609330,0.10122042,93849.0,93830.0,0.010659]
[1767675610243,0.00015983,93849.0,93833.0,0.010658]
[1767675610444,0.00015983,93849.0,93823.0,0.05765069]
[1767675610445,0.00015983,93849.0,93827.0,0.04917767]
[1767675610635,0.10122042,93847.0,93820.0,0.14735464]
[1767675610836,0.09071098,93843.0,93820.0,0.04917767]
[1767675611249,0.09071098,93843.0,93825.0,0.010659]
[1767675611648,0.09071098,93843.0,93820.0,0.04917767]
[1767675611649,0.09071098,93843.0,93828.0,0.010659]
[1767675611947,0.09071098,93843.0,93822.0,0.05081548]
[1767675612135,0.00213132,93839.0,93827.0,0.01561869]
[1767675612336,0.09071098,93843.0,93831.0,0.010658]
[1767675612644,0.10138025,93849.0,93831.0,0.010658]
[1767675612862,0.09087081,93849.0,93831.0,0.01546148]
[1767675613945,0.09087081,93849.0,93833.0,0.010658]
[1767675615433,0.01050944,93852.0,93833.0,0.010658]
[1767675615838,0.01050944,93863.0,93839.0,0.00432597]
[1767675616037,0.0906,93862.0,93842.0,0.00432597]
[1767675616344,0.10110944,93862.0,93842.0,0.00432597]
[1767675616644,0.01050944,93861.0,93840.0,0.010657]
[1767675617441,0.0906,93862.0,93840.0,0.010657]
[1767675617442,0.09071098,93857.0,93840.0,0.010657]
[1767675617842,0.09071098,93857.0,93840.0,0.007657]
[1767675619644,0.09071098,93864.0,93845.0,0.00746153]
[1767675619851,0.10122042,93863.0,93846.0,0.010657]
[1767675625552,0.10122042,93863.0,93842.0,0.09953515]
[1767675625952,0.0906,93865.0,93842.0,0.09953515]
[1767675625953,0.09071098,93861.0,93842.0,0.09953515]
[1767675626154,0.09071098,93861.0,93846.0,0.010657]
[1767675629055,0.01050944,93867.0,93848.0,0.010657]
[1767675629254,0.09071098,93866.0,93850.0,0.01748618]
[1767675629454,0.09071098,93866.0,93847.0,0.20266833]
[1767675629758,0.10122042,93857.0,93847.0,0.0906]
[1767675630357,0.09071098,93857.0,93847.0,0.0906]
[1767675630855,0.01272117,93857.0,93847.0,0.0906]
[1767675631051,0.01050944,93861.0,93847.0,0.0906]
[1767675631255,0.01050944,93861.0,93850.0,0.09815692]
[1767675631457,0.01050944,93861.0,93847.0,0.0906]
[1767675631858,0.01050944,93861.0,93850.0,0.09815692]
[1767675632855,0.01431597,93860.0,93850.0,0.09815692]
[1767675633359,0.01431597,93860.0,93850.0,0.08515692]
[1767675636865,0.09495429,93861.0,93850.0,0.08515692]
[1767675637564,0.10927026,93861.0,93850.0,0.08515692]
[1767675637767,0.01431597,93860.0,93850.0,0.08515692]
[1767675638064,0.01431597,93860.0,93847.0,0.0906]
[1767675638267,0.01431597,93860.0,93850.0,0.09815692]
[1767675638964,0.09495429,93861.0,93847.0,0.0906]
[1767675639161,0.09495429,93861.0,93850.0,0.09815692]
[1767675639562,0.10927026,93861.0,93850.0,0.09815692]
[1767675639766,0.01431597,93857.0,93847.0,0.0906]
[1767675640064,0.09495429,93858.0,93847.0,0.18875692]
[1767675640964,0.09495429,93858.0,93847.0,0.0806]
[1767675641165,0.09495429,93858.0,93848.0,0.09815692]
[1767675641366,0.01431597,93863.0,93848.0,0.09815692]
[1767675641558,0.10927026,93863.0,93848.0,0.09815692]
[1767675642064,0.01431597,93862.0,93848.0,0.09815692]
[1767675646264,0.01431597,93868.0,93849.0,0.01381733]
[1767675646467,0.10927026,93867.0,93848.0,0.09815692]
[1767675646670,0.01431597,93865.0,93848.0,0.09815692]
[1767675648170,0.10927026,93865.0,93850.0,0.09815692]
[1767675648768,0.10927026,93865.0,93850.0,0.08415692]
[1767675654176,0.01431597,93864.0,93850.0,0.08415692]
[1767675654678,0.10927026,93867.0,93848.0,0.01381733]
[1767675654876,0.01491901,93863.0,93850.0,0.09815692]
[1767675656279,0.09495429,93864.0,93850.0,0.09815692]
[1767675656480,0.09495429,93864.0,93850.0,0.07915692]
[1767675660699,0.01491901,93863.0,93850.0,0.07915692]
[1767675660883,0.09273064,93869.0,93847.0,0.0806]
[1767675660884,0.10744597,93854.0,93847.0,0.0806]
[1767675661188,0.10744597,93854.0,93835.0,0.0723651]
[1767675661189,0.0141198,93849.0,93836.0,0.0906]
[1767675661393,0.10571926,93845.0,93832.0,0.00015983]
[1767675661585,0.010658,93833.0,93821.0,0.0906]
[1767675661785,0.010659,93830.0,93814.0,0.0906]
[1767675661985,0.09159946,93834.0,93814.0,0.0906]
[1767675661986,0.10571926,93829.0,93814.0,0.0906]
[1767675662393,0.09159946,93829.0,93814.0,0.0906]
[1767675664094,0.09159946,93829.0,93815.0,0.05358897]
[1767675665296,0.09159946,93834.0,93819.0,0.09815692]
[1767675666401,0.10571926,93834.0,93819.0,0.09815692]
[1767675666584,0.09159946,93834.0,93819.0,0.09815692]
[1767675667893,0.10571926,93834.0,93819.0,0.09815692]
[1767675668098,0.10571926,93833.0,93815.0,0.05358897]
[1767675668299,0.10571926,93833.0,93816.0,0.01066]
[1767675668500,0.10571926,93833.0,93820.0,0.09815692]
[1767675669499,0.10571926,93833.0,93816.0,0.01066]
[1767675669998,0.09159946,93833.0,93816.0,0.01066]
[1767675670193,0.09159946,93833.0,93819.0,0.01066]
[1767675670901,0.0906,93835.0,93823.0,0.0138941]
[1767675671103,0.10571926,93843.0,93823.0,0.0138941]
[1767675671297,0.19631926,93842.0,93823.0,0.0138941]
[1767675671498,0.10571926,93841.0,93822.0,0.01066]
[1767675671699,0.0141198,93840.0,93822.0,0.01066]
[1767675671900,0.10571926,93840.0,93820.0,0.08081692]
[1767675672098,0.10571926,93839.0,93820.0,0.08081692]
[1767675672299,0.09159946,93839.0,93821.0,0.0138941]
[1767675672695,0.10571926,93839.0,93820.0,0.08081692]
[1767675673003,0.10571926,93839.0,93821.0,0.01066]
[1767675673505,0.09159946,93839.0,93821.0,0.0245541]
[1767675675101,0.10571926,93839.0,93821.0,0.01066]
[1767675676706,0.10571926,93839.0,93823.0,0.010659]
[1767675679601,0.10571926,93839.0,93820.0,0.11205102]
[1767675680295,0.10571926,93839.0,93823.0,0.010659]
[1767675686212,0.10571926,93838.0,93820.0,0.01066]
[1767675686406,0.10571926,93838.0,93820.0,0.10881692]
[1767675686801,0.0141198,93836.0,93820.0,0.10881692]
[1767675687004,0.0141198,93830.0,93814.0,0.0906]
[1767675687198,0.10571926,93826.0,93814.0,0.0906]
[1767675687404,0.10571926,93825.0,93814.0,0.0746]
[1767675687611,0.09159946,93825.0,93814.0,0.0746]
[1767675690210,0.0141198,93829.0,93814.0,0.08526]
[1767675691417,0.0141198,93829.0,93814.0,0.0746]
[1767675694618,0.10593258,93824.0,93814.0,0.0746]
[1767675694814,0.09130237,93824.0,93814.0,0.0746]
[1767675695112,0.01463021,93828.0,93814.0,0.0656]
[1767675696117,0.09130237,93830.0,93814.0,0.0656]
[1767675696318,0.10593258,93830.0,93814.0,0.0656]
[1767675701016,0.10593258,93830.0,93815.0,0.01066]
[1767675701216,0.10593258,93830.0,93814.0,0.0656]
[1767675702416,0.09130237,93830.0,93814.0,0.0656]
[1767675702719,0.09130237,93830.0,93814.0,0.0406]
[1767675703717,0.09130237,93830.0,93814.0,0.05126]
[1767675705823,0.10593258,93829.0,93814.0,0.0406]
[1767675710423,0.10593258,93829.0,93814.0,0.0246]
[1767675713731,0.10593258,93828.0,93814.0,0.0246]
[1767675713926,0.10593258,93827.0,93814.0,0.0246]
[1767675714517,0.01463021,93826.0,93814.0,0.0246]
[1767675714832,0.10593258,93824.0,93814.0,0.0246]
[1767675715013,0.09130237,93824.0,93814.0,0.0246]
[1767675718135,0.09130237,93824.0,93809.0,0.0906]
[1767675719225,0.09130237,93824.0,93809.0,0.101261]
[1767675724032,0.09130237,93824.0,93809.0,0.0906]
[1767675724332,0.1127242,93822.0,93809.0,0.0906]
[1767675725836,0.1127242,93822.0,93809.0,0.0686]
[1767675727538,0.01382651,93821.0,93809.0,0.0686]
[1767675727738,0.010659,93825.0,93809.0,0.0686]
[1767675727739,0.1127242,93820.0,93809.0,0.0686]
[1767675728532,0.09889769,93820.0,93809.0,0.0686]
[1767675733548,0.09889769,93820.0,93809.0,0.0556]
[1767675741260,0.09889769,93820.0,93809.0,0.0416]
[1767675742950,0.01382651,93823.0,93809.0,0.0416]
[1767675743155,0.01382651,93832.0,93809.0,0.0416]
[1767675743354,0.10442651,93836.0,93816.0,0.01417778]
[1767675743848,0.01382651,93835.0,93816.0,0.01417778]
[1767675744262,0.01382651,93835.0,93816.0,0.01066]
[1767675748060,0.01382651,93834.0,93816.0,0.01066]
[1767675748561,0.01382651,93833.0,93816.0,0.01066]
[1767675748964,0.01382651,93833.0,93813.0,0.01417778]
[1767675749164,0.01382651,93833.0,93816.0,0.01066]
[1767675750963,0.01382651,93833.0,93813.0,0.02483878]
[1767675751158,0.01379506,93830.0,93810.0,0.09384662]
[1767675751363,0.01379506,93829.0,93810.0,0.09384662]
[1767675752063,0.01395489,93829.0,93810.0,0.09384662]
[1767675753164,0.01395489,93829.0,93811.0,0.010661]
[1767675755163,0.01395489,93829.0,93813.0,0.010661]
[1767675755365,0.01395489,93829.0,93819.0,0.09822047]
[1767675756664,0.01395489,93829.0,93819.0,0.08422047]
[1767675756966,0.01395489,93829.0,93819.0,0.09822047]
[1767675757166,0.01395489,93829.0,93810.0,0.20272809]
[1767675757466,0.01395489,93829.0,93810.0,0.19206709]
[1767675757671,0.01395489,93829.0,93811.0,0.010661]
[1767675758768,0.01395489,93829.0,93810.0,0.19206709]
[1767675759666,0.01395489,93829.0,93810.0,0.20272809]
[1767675763162,0.01395489,93829.0,93810.0,0.10450762]
[1767675763362,0.01395489,93829.0,93810.0,0.21694347]
[1767675763668,0.01395489,93829.0,93810.0,0.19206709]
[1767675763966,0.09822047,93820.0,93809.0,1e-08]
[1767675764171,0.01379506,93817.0,93805.0,0.0906]
[1767675764561,0.01379506,93817.0,93800.0,0.09822047]
[1767675764562,0.01379506,93815.0,93793.0,0.09366537]
[1767675764765,0.01379506,93807.0,93791.0,0.0906]
[1767675764969,0.01379506,93807.0,93792.0,0.0906]
[1767675765562,0.01066,93815.0,93792.0,0.0906]
[1767675765764,0.01379506,93812.0,93792.0,0.0906]
[1767675765964,0.01379506,93810.0,93792.0,0.0906]
[1767675769470,0.01379506,93810.0,93800.0,0.09822047]
[1767675769672,0.01379506,93814.0,93800.0,0.09822047]
[1767675771872,0.0997272,93816.0,93800.0,0.09822047]
[1767675772069,0.0997272,93816.0,93800.0,0.09422047]
[1767675773279,0.1903672,93816.0,93800.0,0.09422047]
[1767675773574,0.0997272,93816.0,93800.0,0.09422047]
[1767675774175,0.11352226,93816.0,93800.0,0.09422047]
[1767675774981,0.01379506,93816.0,93800.0,0.09422047]
[1767675777180,0.01379506,93816.0,93799.0,0.010662]
[1767675777381,0.01379506,93816.0,93800.0,0.09822047]
[1767675778373,0.01437987,93813.0,93796.0,0.010662]
[1767675778577,0.01437987,93813.0,93800.0,0.09822047]
[1767675778880,0.09961642,93814.0,93796.0,0.010662]
[1767675779078,0.09961642,93814.0,93800.0,0.09822047]
[1767675779276,0.01437987,93816.0,93800.0,0.09822047]
[1767675779776,0.01437987,93816.0,93800.0,0.08922047]
[1767675780782,0.09064,93817.0,93800.0,0.08922047]
[1767675780783,0.01437987,93811.0,93800.0,0.09822047]
[1767675780984,0.010661,93809.0,93792.0,0.0906]
[1767675781484,0.010661,93810.0,93792.0,0.0906]
[1767675781672,0.010661,93810.0,93783.0,0.010664]
[1767675781673,0.09822047,93802.0,93786.0,0.01383265]
[1767675781871,0.01467924,93805.0,93786.0,0.01383265]
[1767675782974,0.01467924,93805.0,93785.0,0.09064]
[1767675783179,0.02534124,93805.0,93785.0,0.09064]
[1767675783381,0.01467924,93804.0,93785.0,0.09064]
[1767675784678,0.01467924,93804.0,93785.0,0.10447265]
[1767675785077,0.01467924,93804.0,93785.0,0.19899535]
[1767675788490,0.01467924,93807.0,93786.0,0.11901935]
[1767675789188,0.01467924,93807.0,93790.0,0.09822047]
[1767675790081,0.01467924,93812.0,93792.0,0.11901835]
[1767675791086,0.01467924,93812.0,93792.0,0.10835535]
[1767675792591,0.01467924,93812.0,93792.0,0.08935535]
[1767675793581,0.01467924,93812.0,93796.0,0.010663]
[1767675793783,0.09064,93811.0,93796.0,0.010663]
[1767675794094,0.09064,93811.0,93790.0,0.09822047]
[1767675794095,0.09064,93811.0,93793.0,0.010663]
[1767675794985,0.01467924,93810.0,93792.0,0.10063733]
[1767675795176,0.09064,93811.0,93792.0,0.10063733]
[1767675795380,0.09064,93811.0,93792.0,0.11130033]
[1767675798091,0.10531924,93811.0,93792.0,0.11130033]
[1767675799183,0.10531924,93811.0,93794.0,0.010663]
[1767675800187,0.10531924,93811.0,93792.0,0.10063733]
[1767675800384,0.10531924,93811.0,93794.0,0.010663]
[1767675801394,0.10531924,93811.0,93792.0,0.09730033]
[1767675801592,0.01467924,93810.0,93792.0,0.0911857]
[1767675801984,0.01467924,93809.0,93790.0,0.09822047]
[1767675802292,0.01467924,93807.0,93786.0,0.0945227]
[1767675802491,0.01467924,93807.0,93790.0,0.10888347]
[1767675802693,0.11289971,93810.0,93790.0,0.20340617]
[1767675802892,0.01467924,93810.0,93790.0,0.20340617]
[1767675803088,0.11289971,93810.0,93790.0,0.20871742]
[1767675803493,0.01467924,93810.0,93790.0,0.20871742]
[1767675803794,0.01467924,93810.0,93791.0,0.09945827]
[1767675804386,0.01467924,93810.0,93792.0,0.010663]
[1767675805086,0.01467924,93810.0,93791.0,0.09945827]
[1767675806296,0.11289971,93810.0,93791.0,0.09945827]
[1767675807995,0.11289971,93810.0,93791.0,0.07545827]
[1767675808196,0.01467924,93810.0,93791.0,0.07545827]
[1767675808397,0.11289971,93810.0,93791.0,0.07545827]
[1767675809295,0.01467924,93810.0,93791.0,0.07545827]
[1767675813194,0.010661,93809.0,93791.0,0.07545827]
[1767675815098,0.01385614,93807.0,93785.0,0.18685883]
[1767675815301,0.010661,93806.0,93785.0,0.18685883]
[1767675815499,0.02451714,93806.0,93785.0,0.19117746]
[1767675815697,0.010661,93809.0,93790.0,0.00431132]
[1767675815896,0.01385614,93810.0,93790.0,0.00431132]
[1767675816096,0.01385614,93808.0,93786.0,0.00431132]
[1767675816605,0.02451714,93808.0,93786.0,0.00431132]
[1767675817305,0.01385614,93807.0,93786.0,0.00431132]
[1767675817501,0.01385614,93807.0,93788.0,0.01481987]
[1767675817705,0.01385614,93807.0,93788.0,0.00415687]
[1767675818003,0.01385614,93807.0,93788.0,0.1003757]
[1767675818209,0.09046643,93809.0,93789.0,0.10123197]
[1767675819010,0.10449614,93811.0,93792.0,0.00485636]
[1767675819198,0.11515714,93811.0,93792.0,0.00485636]
[1767675820008,0.01385614,93810.0,93792.0,0.00485636]
[1767675821609,0.01385614,93810.0,93791.0,0.09621883]
[1767675823006,0.01385614,93809.0,93791.0,0.09621883]
[1767675823214,0.010661,93808.0,93791.0,0.09621883]
[1767675823404,0.010661,93808.0,93791.0,0.08221883]
[1767675823710,0.01385614,93809.0,93791.0,0.08221883]
[1767675825516,0.01385614,93809.0,93792.0,0.010663]
[1767675826611,0.01385614,93809.0,93791.0,0.08221883]
[1767675826612,0.01385614,93809.0,93791.0,0.0863182]
[1767675828515,0.09064,93811.0,93793.0,0.00401349]
[1767675828711,0.01385614,93816.0,93796.0,0.10007887]
[1767675828910,0.09064,93815.0,93797.0,0.10007887]
[1767675829511,0.09046643,93817.0,93798.0,0.00386004]
[1767675829716,0.01066,93818.0,93800.0,0.10002667]
[1767675829917,0.09064,93817.0,93800.0,0.10002667]
[1767675830219,0.09064,93817.0,93800.0,0.09621883]
[1767675830413,0.10449614,93817.0,93796.0,0.00380784]
[1767675830607,0.01385614,93816.0,93796.0,0.00380784]
[1767675831118,0.01385614,93816.0,93795.0,0.09202667]
[1767675831708,0.02451614,93816.0,93795.0,0.09202667]
[1767675833313,0.01385614,93816.0,93795.0,0.09202667]
[1767675833518,0.010661,93812.0,93795.0,0.09202667]
[1767675835418,0.01230596,93814.0,93795.0,0.09202667]
[1767675835820,0.09064,93817.0,93795.0,0.09202667]
[1767675836020,0.01066,93816.0,93795.0,0.09202667]
[1767675836210,0.02296596,93816.0,93795.0,0.09202667]
[1767675837019,0.01066,93816.0,93795.0,0.09202667]
[1767675837216,0.09064,93815.0,93795.0,0.09202667]
[1767675837519,0.09064,93815.0,93795.0,0.10268967]
[1767675838018,0.09064,93815.0,93795.0,0.09202667]
[1767675838817,0.09064,93815.0,93795.0,0.07402667]
[1767675840514,0.09064,93814.0,93795.0,0.08468967]
[1767675841822,0.0128472,93807.0,93785.0,0.18495143]
[1767675842119,0.0128472,93808.0,93786.0,0.09431143]
[1767675843220,0.10749173,93809.0,93786.0,0.09431143]
[1767675843620,0.10749173,93809.0,93788.0,0.09431143]
[1767675843922,0.10749173,93809.0,93790.0,7.739e-05]
[1767675844715,0.10749173,93809.0,93785.0,0.09064]
[1767675844716,0.010661,93809.0,93792.0,0.09431143]
[1767675845927,0.010661,93809.0,93785.0,0.09064]
[1767675845928,0.010662,93801.0,93781.0,0.09431143]
[1767675846132,0.0128472,93800.0,93785.0,0.09064]
[1767675846429,0.0128472,93797.0,93778.0,7.805e-05]
[1767675846618,0.0128472,93795.0,93770.0,0.09431143]
[1767675846925,0.09683073,93796.0,93770.0,0.07006405]
[1767675847617,7.805e-05,93795.0,93770.0,0.07006405]
[1767675848226,0.010664,93780.0,93754.0,0.010667]
[1767675848527,0.010664,93780.0,93753.0,0.11832]
[1767675848528,0.0235112,93781.0,93755.0,0.09064]
[1767675848828,0.010665,93779.0,93756.0,0.09431143]
[1767675849217,0.0128472,93781.0,93756.0,0.09431143]
[1767675849418,0.0128472,93781.0,93758.0,0.09431143]
[1767675849624,0.0128472,93781.0,93760.0,0.09431143]
[1767675849824,0.010664,93783.0,93763.0,0.00224036]
[1767675851428,0.1141512,93783.0,93763.0,0.00224036]
[1767675852024,0.0128472,93782.0,93763.0,0.00224036]
[1767675852219,0.09064,93783.0,93768.0,0.0961609]
[1767675852420,0.09683073,93792.0,93755.0,0.09064]
[1767675852421,0.010663,93790.0,93772.0,0.00184947]
[1767675852625,0.09064,93789.0,93773.0,0.00184947]
[1767675854625,0.09064,93789.0,93772.0,0.0721609]
[1767675856536,0.09064,93789.0,93773.0,0.09522089]
[1767675856837,0.09064,93789.0,93776.0,0.00074751]
[1767675857132,0.09064,93789.0,93775.0,0.09431143]
[1767675857335,0.09064,93789.0,93773.0,0.00074751]
[1767675858727,0.09064,93789.0,93770.0,0.09431143]
[1767675858927,0.09064,93789.0,93770.0,0.09521299]
[1767675859730,0.09064,93789.0,93770.0,0.10587799]
[1767675861136,0.09064,93789.0,93771.0,0.00089847]
[1767675861325,0.09064,93789.0,93775.0,0.00089847]
[1767675862133,0.09064,93789.0,93774.0,0.08531143]
[1767675864933,0.010661,93808.0,93784.0,0.00172289]
[1767675865132,0.09064,93807.0,93788.0,0.00172289]
[1767675865341,0.088561,93807.0,93788.0,0.00172289]
[1767675865745,0.1014082,93807.0,93788.0,0.00172289]
[1767675866543,0.088561,93807.0,93790.0,0.00155824]
[1767675867539,0.088561,93807.0,93789.0,0.09431143]
[1767675868740,0.1014082,93807.0,93789.0,0.09431143]
[1767675869948,0.0128472,93806.0,93784.0,0.00542848]
[1767675870146,0.0128472,93806.0,93784.0,0.09973991]
[1767675874645,0.0128472,93806.0,93790.0,0.09827324]
[1767675875856,0.088561,93807.0,93790.0,0.09827324]
[1767675877252,0.1018838,93807.0,93790.0,0.09827324]
[1767675877458,0.0133228,93806.0,93790.0,0.09827324]
[1767675877659,0.0133228,93806.0,93790.0,0.07327324]
[1767675879656,0.0133228,93806.0,93790.0,0.09827324]
[1767675880656,0.0133228,93806.0,93785.0,0.010664]
[1767675880852,0.0133228,93806.0,93790.0,0.09827324]
[1767675882457,0.010661,93805.0,93784.0,0.09431143]
[1767675882652,0.0239838,93805.0,93784.0,0.10497543]
[1767675882849,0.0239838,93805.0,93781.0,0.09064]
[1767675882850,0.0133228,93801.0,93781.0,0.101304]
[1767675883250,0.0133228,93801.0,93783.0,0.010664]
[1767675883751,0.0923549,93802.0,93783.0,0.010664]
[1767675884266,0.1056777,93802.0,93781.0,0.18731237]
[1767675885059,0.1056777,93802.0,93782.0,0.09667237]
[1767675885266,0.1056777,93802.0,93783.0,0.09064]
[1767675885466,0.0133228,93801.0,93783.0,0.06664]
[1767675886167,0.0033228,93801.0,93783.0,0.06664]
[1767675886968,0.09827324,93800.0,93782.0,0.09667237]
[1767675887264,0.0923549,93796.0,93783.0,0.09064]
[1767675888067,0.0923549,93790.0,93770.0,0.20441732]
[1767675888258,0.0923549,93790.0,93771.0,0.10011171]
[1767675888458,0.0923549,93795.0,93774.0,0.00947171]
[1767675888660,0.0923549,93795.0,93780.0,0.09827324]
[1767675890458,0.1056777,93795.0,93780.0,0.09827324]
[1767675890669,0.0239858,93794.0,93774.0,0.00947171]
[1767675891675,0.0133228,93794.0,93776.0,0.010665]
[1767675892362,0.0133228,93794.0,93775.0,0.010665]
[1767675892968,0.0133228,93794.0,93775.0,0.01933473]
[1767675893465,0.0923549,93795.0,93776.0,0.00866973]
[1767675894070,0.1056777,93795.0,93776.0,0.00866973]
[1767675894662,0.0133228,93794.0,93776.0,0.00866973]
[1767675894862,0.0133228,93794.0,93780.0,0.09827324]
[1767675895471,0.0133228,93794.0,93774.0,0.00915215]
[1767675895869,0.0133228,93794.0,93775.0,0.00915215]
[1767675896670,0.09269625,93800.0,93780.0,0.10728042]
[1767675896876,0.010662,93802.0,93783.0,0.00900718]
[1767675897375,0.02276887,93802.0,93783.0,0.00900718]
[1767675897564,0.01210687,93801.0,93783.0,0.00900718]
[1767675897769,0.01210687,93801.0,93782.0,0.09449697]
[1767675900077,0.00210687,93801.0,93782.0,0.09449697]
[1767675900879,0.00210687,93801.0,93782.0,0.08449697]
[1767675901479,0.00210687,93801.0,93782.0,0.09756224]
[1767675902981,0.010662,93800.0,93782.0,0.09756224]
[1767675904482,0.00210687,93801.0,93782.0,0.09756224]
[1767675905883,0.010662,93803.0,93783.0,0.01306527]
[1767675908576,0.010662,93803.0,93782.0,0.07456224]
[1767675909186,0.02359844,93803.0,93782.0,0.07456224]
[1767675910284,0.010662,93803.0,93782.0,0.07456224]
[1767675910584,0.010662,93803.0,93783.0,0.00574321]
[1767675910884,0.02359844,93803.0,93783.0,0.00574321]
[1767675914276,0.01293644,93802.0,93783.0,0.00574321]
[1767675914778,0.02359844,93801.0,93782.0,0.07456224]
[1767675914981,0.01293644,93796.0,93780.0,0.09064]
[1767675915179,0.01293644,93796.0,93780.0,0.18891324]
[1767675915380,0.01293644,93796.0,93780.0,0.09064]
[1767675916282,0.010663,93795.0,93780.0,0.07764]
[1767675916487,0.02359944,93795.0,93780.0,0.07764]
[1767675916988,0.01293644,93790.0,93775.0,0.010665]
[1767675917189,0.01293644,93788.0,93772.0,0.101305]
[1767675917391,0.09391928,93789.0,93772.0,0.101305]
[1767675917690,0.01293644,93791.0,93772.0,0.10549611]
[1767675917877,0.01293644,93791.0,93773.0,0.00459634]
[1767675918280,0.09827324,93790.0,93773.0,0.00459634]
[1767675918481,0.01293644,93791.0,93773.0,0.00459634]
[1767675920393,0.01293644,93791.0,93772.0,0.09064]
[1767675922093,0.09827324,93790.0,93772.0,0.09064]
[1767675922293,0.01293644,93791.0,93772.0,0.09064]
[1767675923484,0.01293644,93791.0,93772.0,0.09451797]
[1767675923995,0.01293644,93791.0,93772.0,0.06851797]
[1767675924993,0.01293644,93791.0,93772.0,0.00387797]
[1767675925190,0.01293644,93791.0,93770.0,0.09827324]
[1767675925191,0.010664,93786.0,93773.0,0.09064]
[1767675925991,0.02359944,93789.0,93770.0,0.09827324]
[1767675926196,0.02359944,93789.0,93768.0,0.00357447]
[1767675926197,0.02359944,93789.0,93771.0,0.09064]
[1767675927398,0.010664,93787.0,93771.0,0.088561]
[1767675927597,0.010664,93787.0,93760.0,0.09827324]
[1767675927598,0.09827324,93781.0,93764.0,0.0043122]
[1767675927802,0.01293644,93784.0,93765.0,0.09064]
[1767675928092,0.010664,93781.0,93766.0,0.00415614]
[1767675928497,0.01293644,93784.0,93766.0,0.00415614]
[1767675928702,0.01293644,93781.0,93765.0,0.09064]
[1767675928994,0.09391928,93782.0,93765.0,0.09064]
[1767675929498,0.010664,93783.0,93766.0,0.00407842]
[1767675929898,0.010664,93786.0,93767.0,0.0043544]
[1767675930095,0.010664,93786.0,93766.0,0.09620299]
[1767675930096,0.010664,93784.0,93769.0,0.0043544]
[1767675930293,0.010664,93787.0,93770.0,0.0043544]
[1767675930998,0.09391928,93788.0,93770.0,0.0043544]
[1767675931200,0.09391928,93788.0,93770.0,0.10262764]
[1767675931705,0.10687173,93788.0,93770.0,0.07927324]
[1767675932289,0.010664,93787.0,93770.0,0.07927324]
[1767675932490,0.010664,93785.0,93770.0,0.07927324]
[1767675934995,0.10687173,93788.0,93770.0,0.07927324]
[1767675936399,0.010664,93787.0,93770.0,0.07927324]
[1767675936593,0.010664,93787.0,93769.0,0.09620299]
[1767675937003,0.010664,93787.0,93769.0,0.10016947]
[1767675939501,0.010664,93787.0,93769.0,0.09016947]
[1767675942600,0.010664,93787.0,93769.0,0.08620299]
[1767675946912,0.09391928,93788.0,93769.0,0.08620299]
[1767675947208,0.10458228,93788.0,93769.0,0.06420299]
[1767675947807,0.098915,93804.0,93774.0,0.00105303]
[1767675947999,0.010662,93801.0,93778.0,0.00105303]
[1767675948202,0.09068,93803.0,93779.0,0.00105303]
[1767675948699,0.010662,93802.0,93779.0,0.00105303]
[1767675949507,0.010662,93802.0,93780.0,0.0017605]
[1767675950201,0.09068,93803.0,93781.0,0.00170114]
[1767675950508,0.09068,93803.0,93782.0,0.00170114]
[1767675950710,0.09068,93803.0,93783.0,0.00149525]
[1767675950911,0.09068,93803.0,93783.0,0.09343274]
[1767675951104,0.09068,93803.0,93784.0,0.00149525]
[1767675953008,0.11186745,93801.0,93779.0,0.00128173]
[1767675953915,0.098915,93801.0,93780.0,0.09308015]
[1767675954106,0.098915,93801.0,93781.0,0.00114266]
[1767675955107,0.098915,93801.0,93780.0,0.07608015]
[1767675955303,0.11076949,93801.0,93780.0,0.07608015]
[1767675956010,0.10514298,93800.0,93780.0,0.07608015]
[1767675958104,0.09328849,93795.0,93778.0,0.09068]
[1767675958311,0.10514298,93795.0,93778.0,0.09068]
[1767675959508,0.09328849,93795.0,93778.0,0.101344]
[1767675960016,0.09328849,93795.0,93778.0,0.010664]
[1767675960316,0.09328849,93795.0,93778.0,0.101304]
[1767675960618,0.09328849,93795.0,93780.0,0.010664]
[1767675962221,0.01185449,93798.0,93782.0,0.010664]
[1767675962518,0.10811768,93800.0,93782.0,0.010664]
[1767675962820,0.10811768,93800.0,93778.0,0.09064]
[1767675963012,0.10811768,93800.0,93779.0,0.010664]